[Event "Rapid della Domenica"]
[Site "Chess.com"]
[Date "2020.05.03"]
[Round "3"]
[White "riccardocanossa"]
[Black "SanSecondoPR"]
[Result "1-0"]
[WhiteElo "1466"]
[BlackElo "1302"]
[TimeControl "720+3"]
[EndTime "7:12:35 PDT"]
[Termination "riccardocanossa ha vinto per abbandono"]

1. d4 {[%clk 0:12:02.9]} 1... d5 {[%clk 0:12:01.1]} 2. c4 {[%clk 0:12:03.3]}
2... e5 {[%clk 0:12:01.3]} 3. dxe5 {[%clk 0:11:59.9]} 3... d4 {[%clk 0:12:02.7]}
4. Nf3 {[%clk 0:11:57.8]} 4... Nc6 {[%clk 0:12:03.6]} 5. g3 {[%clk 0:11:52.7]}
5... Bg4 {[%clk 0:12:02]} 6. Bg2 {[%clk 0:11:50.3]} 6... Nge7 {[%clk 0:11:59.3]}
7. O-O {[%clk 0:11:47.5]} 7... Ng6 {[%clk 0:11:57.2]} 8. Bg5 {[%clk 0:11:25.3]}
8... Be7 {[%clk 0:11:56.8]} 9. Bxe7 {[%clk 0:11:21.8]} 9... Ngxe7 {[%clk
0:11:49.2]} 10. h3 {[%clk 0:11:18.9]} 10... Bxf3 {[%clk 0:11:29.2]} 11. Bxf3
{[%clk 0:11:16.9]} 11... h5 {[%clk 0:11:26.9]} 12. Nd2 {[%clk 0:10:57]} 12... g5
{[%clk 0:11:26.4]} 13. Bg2 {[%clk 0:10:44.1]} 13... Qd7 {[%clk 0:11:04.6]} 14.
Ne4 {[%clk 0:10:34.6]} 14... O-O-O {[%clk 0:10:25.2]} 15. a3 {[%clk 0:10:09.7]}
15... Nxe5 {[%clk 0:10:16.8]} 16. Nc5 {[%clk 0:09:45.7]} 16... Qf5 {[%clk
0:09:32]} 17. Bxb7+ {[%clk 0:09:31.9]} 17... Kb8 {[%clk 0:09:28.1]} 18. Bg2
{[%clk 0:08:58.8]} 18... Nxc4 {[%clk 0:08:49.5]} 19. Na6+ {[%clk 0:08:18.6]}
19... Kc8 {[%clk 0:08:41.1]} 20. Rc1 {[%clk 0:08:13.3]} 20... Qb5 {[%clk
0:08:27.6]} 21. Nb4 {[%clk 0:07:46.1]} 21... Rd7 {[%clk 0:07:10.2]} 22. Qc2
{[%clk 0:06:45.5]} 22... Nb6 {[%clk 0:06:28.3]} 23. Nc6 {[%clk 0:06:29.5]} 23...
Nxc6 {[%clk 0:06:16.1]} 24. Bxc6 {[%clk 0:06:01.7]} 24... Qe5 {[%clk 0:05:42.5]}
25. Bxd7+ {[%clk 0:05:35.2]} 25... Nxd7 {[%clk 0:05:25.9]} 26. Rfd1 {[%clk
0:05:15.8]} 26... Re8 {[%clk 0:05:08.3]} 27. Rxd4 {[%clk 0:04:58.1]} 27... g4
{[%clk 0:04:37]} 28. hxg4 {[%clk 0:04:36.2]} 28... hxg4 {[%clk 0:04:34]} 29.
Rxg4 {[%clk 0:04:33.7]} 29... Rh8 {[%clk 0:04:24.1]} 30. Rc4 {[%clk 0:04:03.5]}
30... Kd8 {[%clk 0:04:02.9]} 31. Rxc7 {[%clk 0:03:50.3]} 31... Qd5 {[%clk
0:03:40.6]} 32. Rc8+ {[%clk 0:03:32.9]} 1-0

[Event "Rapid della Domenica"]
[Site "Chess.com"]
[Date "2020.05.03"]
[Round "3"]
[White "Simo2005"]
[Black "fisherpez"]
[Result "1/2-1/2"]
[WhiteElo "1643"]
[BlackElo "1601"]
[TimeControl "720+3"]
[EndTime "7:14:37 PDT"]
[Termination "Partita patta per ripetizione di mosse"]

1. e4 {[%clk 0:12:02.9]} 1... e6 {[%clk 0:12:01.5]} 2. d4 {[%clk 0:11:58.6]}
2... b6 {[%clk 0:12:03.4]} 3. Bd3 {[%clk 0:11:39.7]} 3... Bb7 {[%clk 0:12:02.9]}
4. c3 {[%clk 0:11:06.6]} 4... Nf6 {[%clk 0:12:03.1]} 5. Qe2 {[%clk 0:10:47]}
5... d6 {[%clk 0:11:59.5]} 6. Nf3 {[%clk 0:10:40.9]} 6... Be7 {[%clk 0:12:00.3]}
7. O-O {[%clk 0:10:34.7]} 7... h6 {[%clk 0:12:00.9]} 8. Na3 {[%clk 0:09:59.6]}
8... Nh7 {[%clk 0:11:49.3]} 9. Nc2 {[%clk 0:09:46.8]} 9... Ng5 {[%clk
0:11:51.1]} 10. Be3 {[%clk 0:09:25.3]} 10... Nxf3+ {[%clk 0:11:46.1]} 11. Qxf3
{[%clk 0:09:20.8]} 11... Bg5 {[%clk 0:11:48.3]} 12. Rad1 {[%clk 0:09:01.6]}
12... Bf6 {[%clk 0:11:44]} 13. Qg3 {[%clk 0:08:21.9]} 13... e5 {[%clk
0:10:51.4]} 14. f4 {[%clk 0:07:48.3]} 14... Qe7 {[%clk 0:10:10.8]} 15. dxe5
{[%clk 0:06:11.9]} 15... dxe5 {[%clk 0:10:11.2]} 16. Qf2 {[%clk 0:05:39.7]}
16... Nd7 {[%clk 0:10:07.8]} 17. b4 {[%clk 0:04:34.6]} 17... O-O-O {[%clk
0:10:07.4]} 18. Qe2 {[%clk 0:04:19.6]} 18... exf4 {[%clk 0:09:55.9]} 19. Bxf4
{[%clk 0:03:52.8]} 19... Ne5 {[%clk 0:09:45]} 20. Ba6 {[%clk 0:03:39.2]} 20...
Rxd1 {[%clk 0:09:30.8]} 21. Rxd1 {[%clk 0:03:33.6]} 21... Rd8 {[%clk 0:09:32.2]}
22. Bxb7+ {[%clk 0:03:11.6]} 22... Kxb7 {[%clk 0:09:31.9]} 23. Rxd8 {[%clk
0:03:06.8]} 23... Qxd8 {[%clk 0:09:32.9]} 24. Bxe5 {[%clk 0:02:58.8]} 24... Bxe5
{[%clk 0:09:32.8]} 25. c4 {[%clk 0:02:13.4]} 25... Qh4 {[%clk 0:09:32.6]} 26. g3
{[%clk 0:02:05.4]} 26... Qg5 {[%clk 0:09:28.8]} 27. Kg2 {[%clk 0:01:52.7]} 27...
h5 {[%clk 0:09:21.2]} 28. Qd3 {[%clk 0:01:43.6]} 28... Qe7 {[%clk 0:08:51.1]}
29. Qd5+ {[%clk 0:01:18.3]} 29... Kb8 {[%clk 0:08:51.6]} 30. c5 {[%clk
0:01:10.6]} 30... h4 {[%clk 0:08:28.8]} 31. cxb6 {[%clk 0:01:01.3]} 31... axb6
{[%clk 0:08:29.2]} 32. Nd4 {[%clk 0:00:58.9]} 32... Bxd4 {[%clk 0:08:25.3]} 33.
Qxd4 {[%clk 0:00:56.1]} 33... hxg3 {[%clk 0:08:25.9]} 34. hxg3 {[%clk
0:00:54.2]} 34... g6 {[%clk 0:08:24.5]} 35. Kf3 {[%clk 0:00:51.3]} 35... Qe6
{[%clk 0:08:23.3]} 36. a3 {[%clk 0:00:46.2]} 36... Qb3+ {[%clk 0:08:20.2]} 37.
Qe3 {[%clk 0:00:42.1]} 37... Qe6 {[%clk 0:08:18.5]} 38. Qd3 {[%clk 0:00:37]}
38... Qf6+ {[%clk 0:08:13.5]} 39. Ke3 {[%clk 0:00:33.5]} 39... Qg5+ {[%clk
0:08:12.7]} 40. Kd4 {[%clk 0:00:32.6]} 40... Qf6+ {[%clk 0:08:14.4]} 41. Kc4
{[%clk 0:00:30.8]} 41... Qe6+ {[%clk 0:08:10.2]} 42. Qd5 {[%clk 0:00:29.4]}
42... Qe7 {[%clk 0:08:07.3]} 43. e5 {[%clk 0:00:26.1]} 43... g5 {[%clk
0:08:05.3]} 44. g4 {[%clk 0:00:24.7]} 44... Qe8 {[%clk 0:07:48.1]} 45. Qb5
{[%clk 0:00:18.9]} 45... Qe6+ {[%clk 0:07:46.8]} 46. Qd5 {[%clk 0:00:20.3]}
46... Qxg4+ {[%clk 0:07:48.8]} 47. Qd4 {[%clk 0:00:22]} 47... Qe6+ {[%clk
0:07:49.3]} 48. Kc3 {[%clk 0:00:21.2]} 48... f6 {[%clk 0:07:43.7]} 49. exf6
{[%clk 0:00:21.3]} 49... Qc6+ {[%clk 0:07:40]} 50. Kd3 {[%clk 0:00:20.7]} 50...
Qf3+ {[%clk 0:07:41.2]} 51. Kc4 {[%clk 0:00:22.2]} 51... Qc6+ {[%clk 0:07:42.3]}
52. Kd3 {[%clk 0:00:23.4]} 52... Qe8 {[%clk 0:07:42.9]} 53. Kc4 {[%clk
0:00:14.2]} 53... Qf7+ {[%clk 0:07:44.3]} 54. Kc3 {[%clk 0:00:14.6]} 54... g4
{[%clk 0:07:40.4]} 55. Qxg4 {[%clk 0:00:16.1]} 55... Qxf6+ {[%clk 0:07:42.6]}
56. Qd4 {[%clk 0:00:18]} 56... Qf3+ {[%clk 0:07:43.6]} 57. Qd3 {[%clk
0:00:18.4]} 57... Qc6+ {[%clk 0:07:44.3]} 58. Qc4 {[%clk 0:00:20.1]} 58... Qf3+
{[%clk 0:07:42.8]} 59. Qd3 {[%clk 0:00:22]} 59... Qf6+ {[%clk 0:07:44.7]} 60.
Qd4 {[%clk 0:00:23.6]} 60... Qc6+ {[%clk 0:07:46.2]} 61. Qc4 {[%clk 0:00:25.6]}
61... Qf6+ {[%clk 0:07:46.5]} 62. Qd4 {[%clk 0:00:27.6]} 1/2-1/2

[Event "Rapid della Domenica"]
[Site "Chess.com"]
[Date "2020.05.03"]
[Round "4"]
[White "MarcoCiva"]
[Black "toninoiuorio"]
[Result "1-0"]
[WhiteElo "1430"]
[BlackElo "1430"]
[TimeControl "720+3"]
[EndTime "7:17:14 PDT"]
[Termination "MarcoCiva ha vinto per abbandono"]

1. d4 {[%clk 0:12:02.9]} 1... d5 {[%clk 0:11:36.2]} 2. c4 {[%clk 0:11:59]} 2...
e6 {[%clk 0:11:37.9]} 3. Nc3 {[%clk 0:12:00]} 3... Nf6 {[%clk 0:11:40]} 4. Nf3
{[%clk 0:12:01.5]} 4... Be7 {[%clk 0:11:40.8]} 5. e3 {[%clk 0:12:03.4]} 5... O-O
{[%clk 0:11:41.7]} 6. a3 {[%clk 0:12:05.2]} 6... b6 {[%clk 0:11:43.8]} 7. cxd5
{[%clk 0:12:06.2]} 7... exd5 {[%clk 0:11:41.6]} 8. Bd3 {[%clk 0:12:07.1]} 8...
Ba6 {[%clk 0:11:43.3]} 9. O-O {[%clk 0:12:05.2]} 9... Bxd3 {[%clk 0:11:44]} 10.
Qxd3 {[%clk 0:12:06.2]} 10... Nbd7 {[%clk 0:11:46.3]} 11. Re1 {[%clk 0:11:38]}
11... Rc8 {[%clk 0:11:47.3]} 12. e4 {[%clk 0:11:37.3]} 12... dxe4 {[%clk
0:11:47.9]} 13. Nxe4 {[%clk 0:11:37.6]} 13... Nxe4 {[%clk 0:11:49.9]} 14. Qxe4
{[%clk 0:11:35.1]} 14... Nf6 {[%clk 0:11:50.8]} 15. Qxe7 {[%clk 0:11:33.7]}
15... Qxe7 {[%clk 0:11:52]} 16. Rxe7 {[%clk 0:11:34.2]} 1-0

[Event "Rapid della Domenica"]
[Site "Chess.com"]
[Date "2020.05.03"]
[Round "4"]
[White "sergiodone"]
[Black "FrancescoZasa"]
[Result "1-0"]
[WhiteElo "1490"]
[BlackElo "584"]
[TimeControl "720+3"]
[EndTime "7:20:14 PDT"]
[Termination "sergiodone ha vinto per scaccomatto"]

1. e4 {[%clk 0:11:39.9]} 1... d5 {[%clk 0:12:02.9]} 2. exd5 {[%clk 0:11:40.6]}
2... Qxd5 {[%clk 0:11:54.1]} 3. c4 {[%clk 0:11:41.1]} 3... Qd4 {[%clk
0:11:46.5]} 4. Be2 {[%clk 0:10:57.8]} 4... c5 {[%clk 0:11:44.4]} 5. Nc3 {[%clk
0:10:47.5]} 5... b6 {[%clk 0:11:32.2]} 6. Nf3 {[%clk 0:10:48.3]} 6... Qd8 {[%clk
0:11:31.9]} 7. O-O {[%clk 0:10:42.5]} 7... Nc6 {[%clk 0:11:34.8]} 8. Nd5 {[%clk
0:10:42.4]} 8... Nb8 {[%clk 0:11:37.7]} 9. d4 {[%clk 0:10:36.7]} 9... Nc6 {[%clk
0:11:40.6]} 10. dxc5 {[%clk 0:10:32.5]} 10... Nb8 {[%clk 0:11:43.5]} 11. cxb6
{[%clk 0:10:21.6]} 11... Nc6 {[%clk 0:11:46.4]} 12. Qa4 {[%clk 0:09:52.2]} 12...
Nf6 {[%clk 0:11:49.3]} 13. Qxc6+ {[%clk 0:09:41.3]} 13... Qd7 {[%clk 0:11:33.6]}
14. Nxf6+ {[%clk 0:09:41.4]} 14... Kd8 {[%clk 0:11:28.6]} 15. Qxa8 {[%clk
0:09:42.8]} 15... Qb7 {[%clk 0:11:21.1]} 16. Rd1+ {[%clk 0:09:31.8]} 16... Qd7
{[%clk 0:11:14.2]} 17. Nxd7 {[%clk 0:09:30.6]} 17... Ke8 {[%clk 0:11:10.8]} 18.
Qxc8# {[%clk 0:09:26]} 1-0

[Event "Rapid della Domenica"]
[Site "Chess.com"]
[Date "2020.05.03"]
[Round "4"]
[White "fisherpez"]
[Black "donaldnecesito"]
[Result "1-0"]
[WhiteElo "1656"]
[BlackElo "1620"]
[TimeControl "720+3"]
[EndTime "7:24:52 PDT"]
[Termination "fisherpez ha vinto per abbandono"]

1. e3 {[%clk 0:12:02.9]} 1... Nf6 {[%clk 0:11:56.1]} 2. b3 {[%clk 0:12:04.8]}
2... d6 {[%clk 0:11:44.4]} 3. Bb2 {[%clk 0:12:05.2]} 3... g6 {[%clk 0:11:45]} 4.
Nc3 {[%clk 0:12:04.7]} 4... Bg7 {[%clk 0:11:44.3]} 5. Be2 {[%clk 0:12:06.6]}
5... O-O {[%clk 0:11:45.6]} 6. h4 {[%clk 0:12:07.8]} 6... e5 {[%clk 0:11:44.3]}
7. h5 {[%clk 0:12:07]} 7... b6 {[%clk 0:11:27.7]} 8. Bf3 {[%clk 0:12:05.7]} 8...
c6 {[%clk 0:11:28.9]} 9. Nge2 {[%clk 0:11:55.1]} 9... d5 {[%clk 0:11:28]} 10.
Ng3 {[%clk 0:11:52.7]} 10... e4 {[%clk 0:11:24.5]} 11. Be2 {[%clk 0:11:52.1]}
11... Nbd7 {[%clk 0:11:09.4]} 12. d3 {[%clk 0:11:52.8]} 12... exd3 {[%clk
0:11:02.6]} 13. Bxd3 {[%clk 0:11:50.3]} 13... Ne5 {[%clk 0:11:03.2]} 14. Be2
{[%clk 0:11:48.5]} 14... Re8 {[%clk 0:10:58.1]} 15. Qd2 {[%clk 0:11:47.3]} 15...
Bg4 {[%clk 0:10:37.5]} 16. O-O-O {[%clk 0:11:46.2]} 16... Bxe2 {[%clk
0:10:36.9]} 17. Qxe2 {[%clk 0:11:45]} 17... Qe7 {[%clk 0:10:27.4]} 18. hxg6
{[%clk 0:11:44.3]} 18... fxg6 {[%clk 0:10:20.9]} 19. Rh2 {[%clk 0:11:32.4]}
19... a5 {[%clk 0:10:20.2]} 20. Nb1 {[%clk 0:11:30.8]} 20... a4 {[%clk
0:10:18.3]} 21. Ba3 {[%clk 0:11:30.4]} 21... c5 {[%clk 0:10:16.7]} 22. Qb5
{[%clk 0:11:23.6]} 22... axb3 {[%clk 0:10:15.7]} 23. axb3 {[%clk 0:11:05.3]}
23... Rxa3 {[%clk 0:10:11.4]} 24. Nxa3 {[%clk 0:11:05.5]} 24... c4 {[%clk
0:10:13.6]} 25. b4 {[%clk 0:10:35.7]} 25... Ra8 {[%clk 0:10:05]} 26. Nb1 {[%clk
0:10:35.1]} 26... Nfg4 {[%clk 0:09:42.1]} 27. Qxd5+ {[%clk 0:10:33.3]} 27... Kh8
{[%clk 0:09:27.6]} 28. Qxa8+ {[%clk 0:10:35]} 28... Bf8 {[%clk 0:09:27.2]} 29.
Rd8 {[%clk 0:10:24.1]} 29... Nd7 {[%clk 0:09:15.7]} 30. Rh1 {[%clk 0:10:18.7]}
30... Nxf2 {[%clk 0:09:10.5]} 31. Rf1 {[%clk 0:10:20.3]} 31... Qxe3+ {[%clk
0:09:01]} 32. Nd2 {[%clk 0:10:14.9]} 32... Kg8 {[%clk 0:08:49.6]} 33. Rxd7
{[%clk 0:10:05.6]} 33... c3 {[%clk 0:08:41]} 34. Qd5+ {[%clk 0:09:46.1]} 34...
Kh8 {[%clk 0:08:42]} 35. Qd4+ {[%clk 0:09:41.7]} 35... Qxd4 {[%clk 0:08:42.8]}
36. Rxd4 {[%clk 0:09:43.7]} 36... cxd2+ {[%clk 0:08:45.5]} 37. Rxd2 {[%clk
0:09:43.4]} 37... Ng4 {[%clk 0:08:40.2]} 38. Rxf8+ {[%clk 0:09:44.5]} 38... Kg7
{[%clk 0:08:40.8]} 39. Rb8 {[%clk 0:09:45.3]} 1-0

[Event "Rapid della Domenica"]
[Site "Chess.com"]
[Date "2020.05.03"]
[Round "4"]
[White "crippo"]
[Black "riccardocanossa"]
[Result "0-1"]
[WhiteElo "1461"]
[BlackElo "1523"]
[TimeControl "720+3"]
[EndTime "7:26:26 PDT"]
[Termination "riccardocanossa ha vinto per abbandono"]

1. e4 {[%clk 0:12:02.9]} 1... e5 {[%clk 0:12:00.5]} 2. Nf3 {[%clk 0:12:03.9]}
2... Nc6 {[%clk 0:12:02.7]} 3. Bc4 {[%clk 0:12:04.7]} 3... Bc5 {[%clk
0:12:04.2]} 4. d4 {[%clk 0:12:04.2]} 4... exd4 {[%clk 0:11:42.3]} 5. Ng5 {[%clk
0:12:00.4]} 5... Ne5 {[%clk 0:10:58.8]} 6. Bb3 {[%clk 0:11:53.4]} 6... Nf6
{[%clk 0:10:48.4]} 7. O-O {[%clk 0:11:53.6]} 7... O-O {[%clk 0:10:49.2]} 8. c3
{[%clk 0:11:50.5]} 8... dxc3 {[%clk 0:10:41.7]} 9. Nxc3 {[%clk 0:11:51.5]} 9...
h6 {[%clk 0:10:36.2]} 10. Nh3 {[%clk 0:11:49.9]} 10... d6 {[%clk 0:10:30.5]} 11.
Nf4 {[%clk 0:11:49.6]} 11... Bg4 {[%clk 0:09:49.9]} 12. Qc2 {[%clk 0:11:47.7]}
12... Qe7 {[%clk 0:09:32]} 13. h3 {[%clk 0:11:44.6]} 13... Bd7 {[%clk 0:09:10]}
14. Be3 {[%clk 0:11:39.9]} 14... Bxe3 {[%clk 0:09:00.3]} 15. fxe3 {[%clk
0:11:40.5]} 15... Bc6 {[%clk 0:08:38.9]} 16. Ncd5 {[%clk 0:11:38.6]} 16... Bxd5
{[%clk 0:08:22.2]} 17. Nxd5 {[%clk 0:11:38.3]} 17... Nxd5 {[%clk 0:08:18.5]} 18.
exd5 {[%clk 0:11:39.6]} 18... Rfe8 {[%clk 0:08:08.8]} 19. Qe2 {[%clk 0:11:36.2]}
19... Nd7 {[%clk 0:07:38.3]} 20. Kh1 {[%clk 0:11:35]} 20... Qxe3 {[%clk
0:07:35.7]} 21. Qg4 {[%clk 0:11:35.7]} 21... Nf6 {[%clk 0:07:28.1]} 22. Qc4
{[%clk 0:11:31.9]} 22... Ne4 {[%clk 0:07:12.1]} 23. Qxc7 {[%clk 0:11:14.8]}
23... Ng3+ {[%clk 0:07:07.3]} 24. Kh2 {[%clk 0:11:15.3]} 24... Nxf1+ {[%clk
0:07:08.9]} 25. Rxf1 {[%clk 0:11:15.4]} 25... Qe5+ {[%clk 0:07:05.8]} 26. Kh1
{[%clk 0:11:15.3]} 26... Qe7 {[%clk 0:07:04.4]} 27. Qc4 {[%clk 0:11:13.8]} 27...
Rac8 {[%clk 0:07:00.7]} 28. Qd3 {[%clk 0:11:15]} 28... Qe4 {[%clk 0:06:54.3]}
29. Qb5 {[%clk 0:11:10.4]} 29... b6 {[%clk 0:06:48.5]} 30. Qd7 {[%clk
0:11:08.7]} 30... Qe7 {[%clk 0:06:33]} 31. Qf5 {[%clk 0:11:09.1]} 31... Rc5
{[%clk 0:06:24.5]} 32. Bc2 {[%clk 0:11:04.9]} 32... g6 {[%clk 0:06:11.6]} 33.
Qf4 {[%clk 0:10:58.1]} 33... Rxc2 {[%clk 0:06:06.1]} 34. Qxh6 {[%clk 0:10:58.1]}
34... Re2 {[%clk 0:05:57.2]} 35. Kh2 {[%clk 0:10:57.5]} 35... Qe5+ {[%clk
0:05:49.1]} 36. Kg1 {[%clk 0:10:48.7]} 36... Qe3+ {[%clk 0:05:44.3]} 37. Kh1
{[%clk 0:10:49.3]} 37... Qxh6 {[%clk 0:05:45]} 38. Rxf7 {[%clk 0:10:50.1]} 0-1

[Event "Rapid della Domenica"]
[Site "Chess.com"]
[Date "2020.05.03"]
[Round "4"]
[White "OMatteoWuO"]
[Black "giulioscaglione"]
[Result "1/2-1/2"]
[WhiteElo "1195"]
[BlackElo "1396"]
[TimeControl "720+3"]
[EndTime "7:29:24 PDT"]
[Termination "Patta d'accordo"]

1. d4 {[%clk 0:12:02.9]} 1... e6 {[%clk 0:12:01.7]} 2. e4 {[%clk 0:11:59.3]}
2... b6 {[%clk 0:12:03]} 3. Be3 {[%clk 0:11:29.8]} 3... Bb7 {[%clk 0:12:02.7]}
4. Nd2 {[%clk 0:11:22.1]} 4... Ne7 {[%clk 0:12:03.3]} 5. c3 {[%clk 0:11:10.1]}
5... Ng6 {[%clk 0:12:04.2]} 6. Ngf3 {[%clk 0:11:06.9]} 6... Be7 {[%clk
0:12:05.1]} 7. Qc2 {[%clk 0:11:05.9]} 7... d6 {[%clk 0:12:06]} 8. Bd3 {[%clk
0:11:01.1]} 8... Nd7 {[%clk 0:12:06.3]} 9. O-O {[%clk 0:10:49.8]} 9... e5 {[%clk
0:12:07.1]} 10. Bb5 {[%clk 0:10:11.3]} 10... c6 {[%clk 0:12:03.8]} 11. Be2
{[%clk 0:09:58]} 11... O-O {[%clk 0:12:04.7]} 12. Rad1 {[%clk 0:09:37.8]} 12...
Nf6 {[%clk 0:11:17]} 13. Bg5 {[%clk 0:09:20.2]} 13... Nd7 {[%clk 0:10:56.7]} 14.
Bxe7 {[%clk 0:09:19.9]} 14... Qxe7 {[%clk 0:10:57.4]} 15. Nb3 {[%clk 0:09:08.8]}
15... Nf4 {[%clk 0:10:40.8]} 16. dxe5 {[%clk 0:08:46.7]} 16... Nxe2+ {[%clk
0:10:34.7]} 17. Qxe2 {[%clk 0:08:47.8]} 17... Nxe5 {[%clk 0:10:33]} 18. Nxe5
{[%clk 0:08:48.8]} 18... Qxe5 {[%clk 0:10:29.4]} 19. f4 {[%clk 0:08:47.5]} 19...
Qe6 {[%clk 0:10:14]} 20. Nd4 {[%clk 0:08:45.6]} 20... Qe7 {[%clk 0:10:07.2]} 21.
Nf5 {[%clk 0:08:21.2]} 21... Qe6 {[%clk 0:09:54.1]} 22. Nxd6 {[%clk 0:08:04.3]}
22... Rab8 {[%clk 0:09:42.9]} 23. Nxb7 {[%clk 0:08:03.5]} 23... Rxb7 {[%clk
0:09:43.8]} 24. g3 {[%clk 0:07:30.8]} 24... Qxa2 {[%clk 0:09:43.5]} 25. Rd6
{[%clk 0:07:25.9]} 25... c5 {[%clk 0:09:41.7]} 26. Rfd1 {[%clk 0:07:22.1]} 26...
Re7 {[%clk 0:09:27.8]} 27. Rd8 {[%clk 0:07:16.6]} 27... Rfe8 {[%clk 0:09:26.8]}
28. Rxe8+ {[%clk 0:07:17.6]} 28... Rxe8 {[%clk 0:09:28.1]} 29. Rd7 {[%clk
0:07:19.3]} 29... Kf8 {[%clk 0:09:09.6]} 30. e5 {[%clk 0:07:14.3]} 30... f6
{[%clk 0:08:52.4]} 31. Kg2 {[%clk 0:06:19.5]} 31... Re7 {[%clk 0:08:14.9]} 32.
Rxe7 {[%clk 0:06:16.5]} 32... Kxe7 {[%clk 0:08:15.6]} 33. exf6+ {[%clk
0:05:59.5]} 33... Kxf6 {[%clk 0:08:17.2]} 34. Qe5+ {[%clk 0:06:00.7]} 34... Kf7
{[%clk 0:08:18.2]} 35. Qf5+ {[%clk 0:05:56.9]} 35... Kg8 {[%clk 0:08:02.1]} 36.
Qc8+ {[%clk 0:05:32.9]} 1/2-1/2

[Event "Rapid della Domenica"]
[Site "Chess.com"]
[Date "2020.05.03"]
[Round "4"]
[White "BAKR1980"]
[Black "sirmale49"]
[Result "1-0"]
[WhiteElo "1646"]
[BlackElo "1408"]
[TimeControl "720+3"]
[EndTime "7:31:10 PDT"]
[Termination "BAKR1980 ha vinto per abbandono"]

1. e4 {[%clk 0:12:02.9]} 1... e5 {[%clk 0:11:59.4]} 2. Nf3 {[%clk 0:12:03.8]}
2... Nc6 {[%clk 0:11:58.4]} 3. Bc4 {[%clk 0:12:04.1]} 3... d6 {[%clk 0:11:59.3]}
4. d4 {[%clk 0:12:04.7]} 4... Bg4 {[%clk 0:11:59.9]} 5. c3 {[%clk 0:11:28.6]}
5... exd4 {[%clk 0:11:33.1]} 6. Qb3 {[%clk 0:11:13.2]} 6... Bh5 {[%clk
0:10:10.5]} 7. cxd4 {[%clk 0:10:50.8]} 7... Na5 {[%clk 0:10:07.4]} 8. Qb5+
{[%clk 0:10:44.4]} 8... Nc6 {[%clk 0:09:46.6]} 9. Qxh5 {[%clk 0:10:45.2]} 9...
Qf6 {[%clk 0:09:38.5]} 10. Bg5 {[%clk 0:10:33.7]} 10... Qg6 {[%clk 0:09:15.2]}
11. Qxg6 {[%clk 0:10:34.6]} 11... hxg6 {[%clk 0:09:12.9]} 12. Bb5 {[%clk
0:10:34.2]} 12... f6 {[%clk 0:09:08.6]} 13. Be3 {[%clk 0:10:29]} 13... O-O-O
{[%clk 0:09:07.4]} 14. Bxc6 {[%clk 0:10:29]} 14... bxc6 {[%clk 0:09:08.1]} 15.
O-O {[%clk 0:10:22.1]} 15... Nh6 {[%clk 0:09:08.2]} 16. h3 {[%clk 0:10:21.2]}
16... f5 {[%clk 0:09:07.2]} 17. e5 {[%clk 0:10:05.9]} 17... dxe5 {[%clk
0:08:37.2]} 18. Nxe5 {[%clk 0:09:54.3]} 18... Rd6 {[%clk 0:08:26.7]} 19. Bxh6
{[%clk 0:09:55.5]} 19... Rxh6 {[%clk 0:08:22.2]} 20. Nf7 {[%clk 0:09:56.7]}
20... Rxd4 {[%clk 0:08:19.7]} 21. Nxh6 {[%clk 0:09:57.8]} 21... gxh6 {[%clk
0:08:21.2]} 22. Nc3 {[%clk 0:09:56.3]} 22... Bb4 {[%clk 0:08:18.9]} 23. a3
{[%clk 0:09:53.7]} 23... Ba5 {[%clk 0:08:18.7]} 24. b4 {[%clk 0:09:54.7]} 24...
Bb6 {[%clk 0:08:14.8]} 25. Rfe1 {[%clk 0:09:47.2]} 25... a5 {[%clk 0:08:05]} 26.
Rad1 {[%clk 0:09:42.1]} 26... Rc4 {[%clk 0:08:00.8]} 27. Re8+ {[%clk 0:09:27.8]}
27... Kb7 {[%clk 0:07:56.6]} 28. bxa5 {[%clk 0:08:57.4]} 28... Bxa5 {[%clk
0:07:55.3]} 29. Rb1+ {[%clk 0:08:57.1]} 29... Ka7 {[%clk 0:07:40.6]} 30. Ne2
{[%clk 0:08:49.1]} 30... Rc2 {[%clk 0:07:30.3]} 31. Nd4 {[%clk 0:08:38.7]} 31...
Rc4 {[%clk 0:07:11.1]} 32. Ne6 {[%clk 0:08:32.2]} 32... Re4 {[%clk 0:07:09.8]}
33. f3 {[%clk 0:08:21.7]} 33... Re5 {[%clk 0:07:01.3]} 34. Rbb8 {[%clk
0:08:06.6]} 34... Bb6+ {[%clk 0:06:38.9]} 35. Rxb6 {[%clk 0:07:56.3]} 35... Kxb6
{[%clk 0:06:30.1]} 36. Nxc7 {[%clk 0:07:49.4]} 36... Rxe8 {[%clk 0:06:28.5]} 37.
Nxe8 {[%clk 0:07:49.2]} 37... c5 {[%clk 0:06:29.6]} 38. Kf2 {[%clk 0:07:47.7]}
38... Kb5 {[%clk 0:06:27.3]} 39. Ke3 {[%clk 0:07:48.4]} 39... c4 {[%clk
0:06:27.5]} 40. Kd4 {[%clk 0:07:48.7]} 40... Ka4 {[%clk 0:06:25.5]} 41. Kxc4
{[%clk 0:07:50.2]} 41... Kxa3 {[%clk 0:06:26.8]} 42. Nd6 {[%clk 0:07:49.9]}
42... Kb2 {[%clk 0:06:21.5]} 43. Kd3 {[%clk 0:07:49.9]} 43... Kc1 {[%clk
0:06:20.2]} 44. Nf7 {[%clk 0:07:51.3]} 44... h5 {[%clk 0:06:17.9]} 45. h4 {[%clk
0:07:52.1]} 45... Kd1 {[%clk 0:06:18.5]} 46. Ke3 {[%clk 0:07:53.2]} 46... Ke1
{[%clk 0:06:18.8]} 47. Kf4 {[%clk 0:07:54.9]} 47... Kf2 {[%clk 0:06:18.3]} 48.
g3 {[%clk 0:07:55.8]} 48... Kg2 {[%clk 0:06:19.2]} 49. Ne5 {[%clk 0:07:57]}
49... Kh3 {[%clk 0:06:19]} 50. Nxg6 {[%clk 0:07:57.5]} 50... Kh2 {[%clk
0:06:12.5]} 51. Ne7 {[%clk 0:07:57.2]} 51... Kh3 {[%clk 0:06:07.8]} 52. Nxf5
{[%clk 0:07:57.3]} 1-0